Cogmind - Beta 13 @@@ ROGUE MODE // 2024.06.03 @ 16:39:59 Player: wojo Result: Destroyed by Y-45 Defender with Beam Rifle Performance ------------- Evolutions (0) 0 Regions Visited (3) 600 Robots Destroyed (39) 195 Value Destroyed (882) 882 Prototype IDs (10) 200 Alien Tech Used (0) 0 Bonus (0) 0 TOTAL SCORE: 1877 Bonus ------- None Cogmind --------- Core Integrity 0/250 Matter 62/300 Energy 150/180 System Corruption 3% Temperature Cool (9) Movement Treading (160) Location -9/Recycling Parts ------- > --- POWER (1) -------- Meta Core > --- PROPULSION (2+1) - Light Treads Spiked Treads > --- UTILITY (2+1) ---- Large Storage Unit Visual Processing Unit (+) Sensor Array > --- WEAPON (2) ------- Autogun Autogun > --- INVENTORY (15) --- Ion Engine Light Ion Engine Light Ion Engine Subdweller Power Source Scrap Engine Weight Redist. System ECM Suite Assault Rifle Autogun Battle Rifle Grenade Launcher Datajack Peak State ------------ > --- POWER ------------ Meta Core > --- PROPULSION ------- Light Treads Spiked Treads > --- UTILITY ---------- Large Storage Unit Visual Processing Unit Sensor Array > --- WEAPON ----------- Autogun Battle Rifle Grenade Launcher > --- INVENTORY -------- Ion Engine Light Ion Engine Light Ion Engine Subdweller Power Source Scrap Engine Weight Redist. System ECM Suite Assault Rifle Autogun Autogun Autogun Datajack [Rating: 28] Favorites ----------- Power Ion Engine Engine Ion Engine Power Core Meta Core Propulsion Light Treads Treads Light Treads Utility Large Storage Unit Device Improved Terrain Scanner Storage Large Storage Unit Processor Signal Interpreter Weapon Autogun Ballistic Gun Autogun Launcher Grenade Launcher Build | -11 -10 -10 -9 ------- Run | Yrd Mat Sub Rec Slots Evolved . | . . . . Power . | . . . . Propulsion . | . . . . Utility . | . . . . Weapon . | . . . . Parts Attached 34 | 7 7 18 2 Power 3 | 1 . 2 . Engine 2 | 1 . 1 . Core 1 | . . 1 . Reactor . | . . . . Propulsion 7 | 2 1 4 . Treads 7 | 2 1 4 . Leg . | . . . . Wheel . | . . . . Hover . | . . . . Flight . | . . . . Utility 7 | 2 1 4 . Device 3 | 1 . 2 . Storage 2 | 1 1 . . Processor 2 | . . 2 . Hackware . | . . . . Protection . | . . . . Artifact . | . . . . Weapon 17 | 2 5 8 2 Energy Gun . | . . . . Energy Cannon . | . . . . Ballistic Gun 13 | 2 4 5 2 Ballistic Cannon . | . . . . Launcher 4 | . 1 3 . Special Weapon . | . . . . Impact Weapon . | . . . . Slashing Weapon . | . . . . Piercing Weapon . | . . . . Special Melee Weapon . | . . . . Unidentified Prototypes . | . . . . Parts Lost 6 | . . 5 1 Power . | . . . . Propulsion 2 | . . 2 . Utility 1 | . . 1 . Weapon 3 | . . 2 1 Highest Loss Streak 2 | . . 2 1 To Critical Strikes . | . . . . Average Slot Usage (%) 96 | . 100 95 90 Engine 12 | . 14 11 . Core 1 | . . 1 10 Treads 26 | . 28 26 20 Device 8 | . 14 6 10 Storage 13 | . 14 13 10 Processor 4 | . . 6 10 Ballistic Gun 22 | . 26 21 20 Launcher 5 | . 1 7 10 Naked Turns . | . . . . Heaviest Build 35 | 15 32 35 35 Greatest Support 40 | 40 40 40 40 Greatest Overweight (x) 2 | 2 . 1 . Average Overweight (x) . | . . . . Largest Inventory Capacity 15 | 8 15 15 15 Average Capacity 13 | 7 12 15 15 Most Carried 15 | 3 15 15 13 Average Carried 12 | 1 9 13 12 Final Capacity 15 | 8 15 15 15 Final Carried 15 | 3 15 11 13 Class Distribution -------------------- 87% | Mutant 12% | Skirmisher Dominant Class ---------------- Mutant | -10/Materials Mutant | -10/Subcaves Skirmisher | -9/Recycling Resources | -11 -10 -10 -9 ----------- Run | Yrd Mat Sub Rec Matter Collected 1444 | 306 460 636 42 Remotely . | . . . . Salvage Created 982 | 96 514 330 42 Parts 72 | 6 31 30 5 Haulers Intercepted 2 | . 2 . . Recyclers Shooed . | . . . . Parts Field Recycled . | . . . . Retrieved Matter . | . . . . Parts Self-Destructed 11 | . . 11 . Prevented . | . . . . Kills | -11 -10 -10 -9 ------- Run | Yrd Mat Sub Rec Combat Hostiles Destroyed 25 | . 11 13 1 Guns 17 | . 8 8 1 AOE 8 | . 3 5 . Classes Destroyed 12 | 2 7 2 1 Worker 1 | . 1 . . Tunneler 3 | 2 1 . . Hauler 2 | . 2 . . Recycler 1 | 1 . . . Mechanic 1 | . 1 . . Operator 1 | . 1 . . Turret 2 | . . 2 . Watcher 3 | . 3 . . Swarmer 10 | . 6 4 . Grunt 5 | . 5 . . Programmer 1 | . . . 1 Subdweller 9 | . . 9 . Best Kill Streak 6 | 2 4 6 1 Combat Bots Only 4 | . 3 4 1 Max Kills in Single Turn 3 | 1 3 2 1 Gunslinging . | . . . . Exploded 3 | . 3 1 . Melee . | . . . . Uniques/NPCs Destroyed . | . . . . Combat | -11 -10 -10 -9 -------- Run | Yrd Mat Sub Rec Hostile Shots Fired 191 | . 62 124 5 Missed 73 | . 18 54 1 Damage Taken 1401 | . 454 885 62 Core 251 | . 60 176 15 Absorbed by Shields . | . . . . Core Remaining (%) 100 | 100 . . . Volleys Fired 127 | 6 57 62 2 Largest 2 | 2 2 2 2 Hottest 55 | 40 50 55 48 Shots Fired 249 | 12 114 119 4 Gun 220 | 12 112 92 4 Cannon . | . . . . Launcher 29 | . 2 27 . Special . | . . . . Kinetic 220 | 12 112 92 4 Thermal . | . . . . Explosive 29 | . 2 27 . Electromagnetic . | . . . . Robot Hit Streak 13 | 2 12 13 3 Robot Miss Streak 7 | 2 7 5 1 Penetration Max . | . . . . Secondary Targets 1 | . 1 . . Max Gunslinging Chain 1 | . 1 . . Shots Hit Robots 138 | 6 70 59 3 Core Hits 61 | 2 29 29 1 Critical Kills . | . . . . Critical Parts Destroyed . | . . . . Critical Strikes . | . . . . Melee Attacks . | . . . . Impact . | . . . . Slashing . | . . . . Piercing . | . . . . Sneak Attacks . | . . . . Combat Hostiles . | . . . . Follow-up Attacks . | . . . . Damage Inflicted 2540 | 85 1129 1283 43 Guns 1825 | 83 961 738 43 Cannons . | . . . . Explosions 708 | . 163 545 . Melee . | . . . . Ramming 7 | 2 5 . . Kinetic 1825 | 83 961 738 43 Thermal . | . . . . Explosive 708 | . 163 545 . Electromagnetic . | . . . . Impact . | . . . . Slashing . | . . . . Piercing . | . . . . Highest Corruption 3 | . 2 2 3 Average Corruption 2 | . 2 2 2 Corruption Purged . | . . . . Corruption Blocked . | . . . . Effects 61 | . 6 54 1 Message Errors 18 | . 1 17 . Matter Fused 13 | . . 12 1 Heat Flow Errors 5 | . 2 3 . Energy Discharges 10 | . 2 8 . Data Loss (minor) 6 | . 1 5 . Data Loss (major) 3 | . . 3 . Misfires 3 | . . 3 . Alerts 3 | . . 3 . Overload Shots . | . . . . Overflow Damage 37 | . 8 29 . Projectiles . | . . . . Explosions 37 | . 8 29 . Melee . | . . . . Knockbacks . | . . . . Impact . | . . . . Kinetic . | . . . . Secondary . | . . . . Self-Inflicted Damage 117 | . . 117 . Shots 6 | . . 6 . Rammed 1 | . 1 . . Targets Rammed 2 | 1 1 . . Kicked . | . . . . Crushed 1 | 1 . . . Highest Temperature 270 | . 270 177 8 Average Temperature 56 | . 54 83 6 Received Heat Transfer 336 | . 165 162 9 Siege Activations . | . . . . Robots Corrupted . | . . . . Combat Hostiles . | . . . . Parts Fried . | . . . . Impact Corruptions . | . . . . Robots Melted . | . . . . Combat Hostiles . | . . . . Parts Melted 1 | . . 1 . Heat Transferred . | . . . . Parts Sabotaged . | . . . . Parts Stolen . | . . . . Parts Stripped . | . . . . Power Chain Reactions . | . . . . Alert | -11 -10 -10 -9 ------- Run | Yrd Mat Sub Rec Peak Influence 272 | 15 272 . 260 Initial 240 | . 9 . 240 Average 92 | 5 96 . 244 Maximum Alert Level 1 | . 1 . 1 Low Security (%) 88 | 100 89 . . Level 1 11 | . 10 . 100 Level 2 . | . . . . Level 3 . | . . . . Level 4 . | . . . . Level 5 . | . . . . High Security . | . . . . Max Security . | . . . . Squads Dispatched 3 | . 3 . . Investigation 1 | . 1 . . Extermination . | . . . . Reinforcement 2 | . 2 . . Assault . | . . . . Garrison . | . . . . Intercept . | . . . . Searches Triggered . | . . . . Construction Impeded . | . . . . Haulers Reinforced . | . . . . Active Scanning Responses . | . . . . Cargo Convoy Interrupts . | . . . . Stealth | -11 -10 -10 -9 --------- Run | Yrd Mat Sub Rec Distress Signals 2 | . 2 . . Communications Jammed . | . . . . Distress Signals . | . . . . Times Spotted 67 | . 24 38 5 Peak Tracking Total 6 | . 4 6 5 Tactical Retreats 5 | . 1 4 . Traps | -11 -10 -10 -9 ------- Run | Yrd Mat Sub Rec Traps Triggered 3 | . 2 1 . Indirectly . | . . . . Trap Hack Attempts . | . . . . Triggered . | . . . . Disarmed . | . . . . Reprogrammed . | . . . . Reused . | . . . . Traps Extracted . | . . . . Installed . | . . . . Triggered . | . . . . Machines | -11 -10 -10 -9 ---------- Run | Yrd Mat Sub Rec Machines Disabled 5 | . 1 4 . Max in Single Turn 2 | . 1 2 . Machines Repaired . | . . . . Machines Dismantled . | . . . . Machines Sabotaged . | . . . . Overloaded Fab Kills . | . . . . Hacking | -11 -10 -10 -9 --------- Run | Yrd Mat Sub Rec Machines Accessed 2 | . 1 1 . Terminals 1 | . 1 . . Fabricators . | . . . . Repair Stations . | . . . . Recycling Units . | . . . . Scanalyzers . | . . . . Garrison Access . | . . . . Total Hacks 12 | . 3 9 . Successful 9 | . . 9 . Failed 3 | . 3 . . Catastrophic . | . . . . Database Lockouts . | . . . . Manual . | . . . . Terminals 3 | . 3 . . Fabricators . | . . . . Repair Stations . | . . . . Recycling Units . | . . . . Scanalyzers . | . . . . Garrison Access . | . . . . Terminal Hacks 9 | . . 9 . Record 8 | . . 8 . Derelict Proto ID Bank 1 | . . 1 . Fabricator Hacks . | . . . . Repair Station Hacks . | . . . . Recycling Unit Hacks . | . . . . Scanalyzer . | . . . . Garrison Access Hacks . | . . . . Unauthorized Hacks . | . . . . Terminals . | . . . . Fabricators . | . . . . Repair Stations . | . . . . Recycling Units . | . . . . Scanalyzers . | . . . . Garrison Access . | . . . . Data Cores Recovered . | . . . . Used . | . . . . Hacking Detections 1 | . 1 . . Full Trace Events . | . . . . Feedback Events . | . . . . Feedback Blocked . | . . . . Robot Schematics Acquired . | . . . . Robots Built . | . . . . Authchips . | . . . . Time . | . . . . Total Robot Build Rating . | . . . . Part Schematics Acquired . | . . . . Parts Built . | . . . . Authchips . | . . . . Time . | . . . . Total Part Build Rating . | . . . . Parts Repaired . | . . . . Time . | . . . . Parts Recycled . | . . . . Recycled Matter . | . . . . Retrieved Matter . | . . . . Retrieved Components . | . . . . Parts Scanalyzed . | . . . . Part Schematics Acquired . | . . . . Parts Damaged . | . . . . Bothacking | -11 -10 -10 -9 ------------ Run | Yrd Mat Sub Rec Used RIF Installer . | . . . . Robots Hacked . | . . . . Non-combat . | . . . . Combat . | . . . . Robot Hacks Applied . | . . . . Relay Couplers Released . | . . . . Fabnet Peak Effective % . | . . . . Robots Rewired . | . . . . Allies Hacked . | . . . . Hacks Repelled . | . . . . Allies | -11 -10 -10 -9 -------- Run | Yrd Mat Sub Rec Total Allies . | . . . . Largest Group . | . . . . Highest-Rated Group . | . . . . Highest-Rated Ally . | . . . . Total Orders . | . . . . Ally Attacks . | . . . . Total Damage . | . . . . Kills . | . . . . Allies Corrupted . | . . . . Allies Melted . | . . . . Intel | -11 -10 -10 -9 ------- Run | Yrd Mat Sub Rec Robot Analysis Total . | . . . . Derelict Logs Recovered . | . . . . Drone Launches . | . . . . Drone Recoveries . | . . . . Exploration | -11 -10 -10 -9 ------------- Run | Yrd Mat Sub Rec Turns Passed 5378 | 142 1558 3644 34 Spaces Moved 3053 | 73 834 2130 16 Core 13 | 13 . . . Treads 3040 | 60 834 2130 16 Legs . | . . . . Wheels . | . . . . Hover . | . . . . Flight . | . . . . Fastest Speed 50 | 50 160 160 160 Average Speed 160 | 150 160 161 160 Slowest Speed 260 | 160 160 260 160 Overloaded Moves . | . . . . Propulsion Burnouts . | . . . . Robots Hopped . | . . . . Cave-ins Triggered . | . . . . Exploration Rate (%) 45 | 6 95 74 5 Regions Visited 3 Branch Regions 2 Pre-discovered Areas . | . . . . Known Exits Taken 1 | . . 1 . Unknown Exits Taken 2 | 1 1 . . Scrap Searched 3 | . . 3 . Spaces Dug 6 | . . 6 . Terrain Destroyed 104 | . 16 88 . Melee . | . . . . Projectile . | . . . . AOE 104 | . 16 88 . Terrain Rammed . | . . . . Walls Destroyed . | . . . . Machines Disabled . | . . . . Actions | -11 -10 -10 -9 --------- Run | Yrd Mat Sub Rec Total 3292 | 89 949 2233 21 Wait 48 | . 31 17 . Move 3050 | 72 833 2129 16 Hop . | . . . . Pick Up 20 | 3 15 1 1 Fast Attach 9 | 7 . 2 . Attach 8 | . . 8 . Detach 2 | . . 2 . Swap 17 | . 7 8 2 Drop 9 | . 5 4 . Fire 127 | 6 57 62 2 Melee . | . . . . Ram . | . . . . Kick . | . . . . Crush 2 | 1 1 . . Escape Stasis . | . . . . Rewire . | . . . . Trap . | . . . . Miscellaneous . | . . . . Route ------- -11/Scrapyard -10/Materials (discovered 6 exits: [*Mat x3] / [*Min x2] / *Sub) -10/Subcaves (discovered 3 exits: [*Mat x2] / *Rec) -9/Recycling History --------- Turn | Location | Event 18 | -11/Scrapyard | Discovered new exit (range 15) 143 | -11/Scrapyard | Entered Materials 264 | -10/Materials | Discovered new exit (range 8) 315 | -10/Materials | Build established: Mutant 551 | -10/Materials | Discovered new exit (range 3) 852 | -10/Materials | Discovered new exit (range 15) 874 | -10/Materials | Discovered new exit (range 3) 1238 | -10/Materials | Discovered new exit (range 16) 1561 | -10/Materials | Discovered new exit (range 13) 1701 | -10/Materials | Entered Subcaves 1741 | -10/Subcaves | Shifting Twisted Machinery released Mak. Shrapnel Gun 1778 | -10/Subcaves | Shifting Twisted Machinery released Flamer 1974 | -10/Subcaves | A swath of the cavern ceiling suddenly collapsed 2598 | -10/Subcaves | Discovered new exit (range 16) 3341 | -10/Subcaves | Discovered new exit (range 11) 3412 | -10/Subcaves | Identified exit to Recycling 3449 | -10/Subcaves | Shifting Twisted Machinery released Sub. Optics 3483 | -10/Subcaves | Shifting Twisted Machinery released Sub. Power Source 4253 | -10/Subcaves | A swath of the cavern ceiling suddenly collapsed 4295 | -10/Subcaves | Core integrity fell below 50% 4529 | -10/Subcaves | Discovered new exit (range 16) 4611 | -10/Subcaves | Core integrity fell below 20% 4641 | -10/Subcaves | Visited 4L-MR0's lab 4700 | -10/Subcaves | Found Meta Core 4702 | -10/Subcaves | Attached Meta Core, gained temporary slots: Propulsion, Utility, Weapon 5012 | -10/Subcaves | Build established: Skirmisher 5345 | -10/Subcaves | Entered Recycling 5360 | -9/Recycling | Found Scrap Engine 5379 | -9/Recycling | Destroyed by Y-45 Defender with Beam Rifle Last Messages --------------- 05020_ System corrupted: Matter fused (-5). 05033_ Acquired 25 matter. 05114_ System corrupted: Matter fused (-6). 05171_ System corrupted: Energy discharge (-66). 05249_ System corrupted: FCS attempts to trigger Autogun. 05249_ System corrupted: Autogun misfires. 05300_ 4F&GP YCAIBHDZ7%UBCM =ZN5XJMMX1L8D%| A mysterious object appears at your location! LOCATION=RECYCLING GOAL=ESCAPE 05360_ Acquired Scrap Engine. 05367_ I-25 Savior springs to life. 05367_ Y-45 Defender springs to life. 05367_ G-34 Mercenary springs to life. 05370_ System corrupted: Matter fused (-6). 05370_ P-60 Hacker destroyed. 05373_ Acquired 42 matter. 05376_ Autogun destroyed. 05377_ Temporary Weapon slot lost. Map ----- +----------------------------------------------------+ | | | | | | | | | | | | | | | | | | | ????????????????????????????? | | ????????????????????????????? | | ????????????????????????????? | | ????????????????????????????? | | ????????????????????????????? | | ????????????????????????????? | | ????????????????????????????? | | ????????????????????????????? | | ????????????????????????????? | | ?#####??????????????????????? | | ?# #??########????????????? | | ?# #? g r#????????????? | | ?# #?g! #????????????? | | ?# #tgusb[ #????????????? | | ?# #i ! #????????????? | | ?# !!YY ! #????????????? | | ?# =@#! !#????????????? | | ?# =[# ] ! #????????????? | | ?# #? #????????????? | | ?# #?#########????????????? | | ?# !??????????????????????? | | ?# !??????????????????????? | | ?# !??????????????????????? | | ?# #??????????????????????? | | ?# #??????????????????????? | | ?# #??????????????????????? | | ?# #??????????????????????? | | ?# ???????????????????????? | | ?# ???????????????????????? | | ?# ???????????????????????? | | ?# ???????????????????????? | | ?# ???????????????????????? | | ?# ???????????????????????? | | ?? ???????????????????????? | | ?? ???????????????????????? | | ????????????????????????????? | | ????????????????????????????? | | ????????????????????????????? | | ????????????????????????????? | | ????????????????????????????? | | ????????????????????????????? | +----------------------------------------------------+ Best States ------------- Heat Dissipation 25 Energy Generation 17 Energy Capacity 250 Matter Stores 300 Matter Capacity 300 Sight Range 18 Robot Scan Range 14 Terrain Scan Range 16 Terrain Scan Density 10 ECM Strength 1 Evasion (%) 40 Recoil Reduction 2 Item Schematics ----------------- None Robot Schematics ------------------ None Fabricated ------------ Nothing Alien Tech Used ----------------- None Achievements -------------- None Challenges ------------ None Game ------ Seed CompactAlphaDissipator Manual? 0 Play Time 00:35:59 Cumulative 21.7 hours Start 2024.06.03 @ 16:00:33 End 2024.06.03 @ 16:39:59 Sessions 1 Manual Loads 0 Difficulty Rogue Special Mode None Game No. 37 Rogue 37 Adventurer 0 Explorer 0 Win Type - Total 0 Types 0/0/0/0/0/0/0/0/0 Lore% 13 Gallery% 25 Achievement% 17 Wizard Run 0 Options --------- Layout 1 ASCII 0 Keyboard 0 Movement Arrows Keybinds 0 Fullscreen 1 Font 16/Terminus Map View 50x40 Zoom Use 0% Tactical HUD 1 Map Filters NONE Filters NONE Steam SD RUN: d7526657-47b1-48f5-9053-037868cecbf1